[Event "Titled Tuesday Blitz February 21 Late 2023"]
[White "Novikov, Evgenij"]
[Black "Guzman Moneo, Alberto"]
[WhiteFideId "4125380"]
[BlackFideId "2209616"]
[WhiteElo "2276"]
[BlackElo "2170"]
[Result "1-0"]
[Round "03"]
[TimeControl "180+2"]
[Date "2023.02.21"]
[WhiteClock "0:00:07"]
[BlackClock "0:00:27"]

1. e4 {[%clk 0:02:59]}  c5 {[%clk 0:02:57]} 2. Nf3 {[%clk 0:02:57]}  Nc6 {[%clk 0:02:56]} 3. d4 {[%clk 0:02:52]}  cxd4 {[%clk 0:02:57]} 4. c3 {[%clk 0:02:53]}  e5 {[%clk 0:02:56]} 5. cxd4 {[%clk 0:02:52]}  exd4 {[%clk 0:02:56]} 6. Nxd4 {[%clk 0:02:51]}  Nf6 {[%clk 0:02:56]} 7. Nc3 {[%clk 0:02:46]}  Bb4 {[%clk 0:02:56]} 8. Nxc6 {[%clk 0:02:40]}  bxc6 {[%clk 0:02:56]} 9. Bd3 {[%clk 0:02:38]}  O-O {[%clk 0:02:53]} 10. O-O {[%clk 0:02:37]}  d5 {[%clk 0:02:52]} 11. e5 {[%clk 0:02:30]}  Ng4 {[%clk 0:02:49]} 12. Bf4 {[%clk 0:02:24]}  Re8 {[%clk 0:02:40]} 13. Re1 {[%clk 0:02:04]}  Bc5 {[%clk 0:02:37]} 14. Bg3 {[%clk 0:01:54]}  Qg5 {[%clk 0:02:27]} 15. Na4 {[%clk 0:01:37]}  Bb6 {[%clk 0:01:56]} 16. Nxb6 {[%clk 0:01:37]}  axb6 {[%clk 0:01:57]} 17. f4 {[%clk 0:01:36]}  Qe7 {[%clk 0:01:49]} 18. Qc2 {[%clk 0:01:32]}  Qc5+ {[%clk 0:01:37]} 19. Kh1 {[%clk 0:01:23]}  Qxc2 {[%clk 0:01:32]} 20. Bxc2 {[%clk 0:01:24]}  d4 {[%clk 0:01:28]} 21. Be4 {[%clk 0:01:19]}  Bb7 {[%clk 0:01:22]} 22. h3 {[%clk 0:01:14]}  Ne3 {[%clk 0:01:21]} 23. Bf2 {[%clk 0:01:11]}  f6 {[%clk 0:01:15]} 24. Bxe3 {[%clk 0:01:07]}  dxe3 {[%clk 0:01:15]} 25. Rxe3 {[%clk 0:01:08]}  fxe5 {[%clk 0:01:15]} 26. fxe5 {[%clk 0:01:09]}  g6 {[%clk 0:01:15]} 27. Bf3 {[%clk 0:01:05]}  Kg7 {[%clk 0:01:14]} 28. a3 {[%clk 0:01:04]}  Re7 {[%clk 0:01:10]} 29. Rc1 {[%clk 0:01:01]}  c5 {[%clk 0:01:07]} 30. Bxb7 {[%clk 0:01:00]}  Rxb7 {[%clk 0:01:08]} 31. Rd1 {[%clk 0:00:59]}  Re8 {[%clk 0:01:08]} 32. Rd6 {[%clk 0:00:58]}  b5 {[%clk 0:01:07]} 33. Rc6 {[%clk 0:00:54]}  c4 {[%clk 0:01:05]} 34. Rc5 {[%clk 0:00:45]}  Re6 {[%clk 0:01:02]} 35. Kh2 {[%clk 0:00:38]}  h5 {[%clk 0:01:02]} 36. Kg3 {[%clk 0:00:38]}  g5 {[%clk 0:01:02]} 37. Kf3 {[%clk 0:00:38]}  Kg6 {[%clk 0:01:02]} 38. Ke4 {[%clk 0:00:39]}  h4 {[%clk 0:00:56]} 39. Kd5 {[%clk 0:00:36]}  Re8 {[%clk 0:00:53]} 40. Rc6+ {[%clk 0:00:34]}  Kh5 {[%clk 0:00:52]} 41. e6 {[%clk 0:00:31]}  Rd8+ {[%clk 0:00:49]} 42. Rd6 {[%clk 0:00:30]}  Re8 {[%clk 0:00:49]} 43. Re5 {[%clk 0:00:26]}  Ree7 {[%clk 0:00:45]} 44. Rd8 {[%clk 0:00:25]}  Kg6 {[%clk 0:00:44]} 45. Rg8+ {[%clk 0:00:24]}  Kh7 {[%clk 0:00:43]} 46. Rgxg5 {[%clk 0:00:22]}  b4 {[%clk 0:00:42]} 47. Rh5+ {[%clk 0:00:21]}  Kg6 {[%clk 0:00:42]} 48. Reg5+ {[%clk 0:00:22]}  Kf6 {[%clk 0:00:42]} 49. Rf5+ {[%clk 0:00:23]}  Kg6 {[%clk 0:00:43]} 50. Rhg5+ {[%clk 0:00:24]}  Kh6 {[%clk 0:00:43]} 51. axb4 {[%clk 0:00:22]}  Rec7 {[%clk 0:00:39]} 52. Rg4 {[%clk 0:00:18]}  Rxb4 {[%clk 0:00:37]} 53. Rxh4+ {[%clk 0:00:17]}  Kg6 {[%clk 0:00:37]} 54. Rf2 {[%clk 0:00:14]}  Rb5+ {[%clk 0:00:35]} 55. Kd6 {[%clk 0:00:14]}  Rbb7 {[%clk 0:00:34]} 56. Rg4+ {[%clk 0:00:13]}  Kh5 {[%clk 0:00:33]} 57. Rf8 {[%clk 0:00:12]}  Rh7 {[%clk 0:00:32]} 58. Rxc4 {[%clk 0:00:10]}  Rxb2 {[%clk 0:00:30]} 59. Rf5+ {[%clk 0:00:09]}  Kg6 {[%clk 0:00:29]} 60. Rcf4 {[%clk 0:00:10]}  Rd2+ {[%clk 0:00:29]} 61. Ke5 {[%clk 0:00:10]}  Re2+ {[%clk 0:00:29]} 62. Re4 {[%clk 0:00:10]}  Rxe4+ {[%clk 0:00:29]} 63. Kxe4 {[%clk 0:00:11]}  Re7 {[%clk 0:00:29]} 64. Re5 {[%clk 0:00:11]}  Kf6 {[%clk 0:00:28]} 65. g4 {[%clk 0:00:11]}  Ra7 {[%clk 0:00:26]} 66. e7 {[%clk 0:00:11]}  Ra4+ {[%clk 0:00:26]} 67. Kf3 {[%clk 0:00:09]}  Ra3+ {[%clk 0:00:25]} 68. Re3 {[%clk 0:00:06]}  Ra1 {[%clk 0:00:25]} 69. e8=Q {[%clk 0:00:06]}  Rf1+ {[%clk 0:00:26]} 70. Ke2 {[%clk 0:00:06]}  Rf5 {[%clk 0:00:27]} 71. Qe7+ {[%clk 0:00:05]}  Kg6 {[%clk 0:00:27]} 72. gxf5+ {[%clk 0:00:06]}  Kh5 {[%clk 0:00:26]} 73. Qh7+ {[%clk 0:00:05]}  Kg5 {[%clk 0:00:27]} 74. Qg6+ {[%clk 0:00:06]}  Kf4 {[%clk 0:00:27]} 75. Qg4# {[%clk 0:00:07]} 1-0


[Site "https://www.chess.com"]

[Event "Titled Tuesday Blitz February 21 Late 2023"]
[White "Romero Ruscalleda, Josep"]
[Black "Sztokbant, Bernardo Vainzoff"]
[WhiteFideId "2231859"]
[BlackFideId "2115956"]
[WhiteElo "2160"]
[BlackElo "2213"]
[Result "0-1"]
[Round "03"]
[TimeControl "180+2"]
[Date "2023.02.21"]
[WhiteClock "0:00:10"]
[BlackClock "0:00:18"]

1. e4 {[%clk 0:03:00]}  c5 {[%clk 0:02:59]} 2. c3 {[%clk 0:03:00]}  d5 {[%clk 0:02:59]} 3. exd5 {[%clk 0:03:00]}  Qxd5 {[%clk 0:03:00]} 4. d4 {[%clk 0:03:01]}  Nc6 {[%clk 0:02:59]} 5. Nf3 {[%clk 0:03:01]}  Bg4 {[%clk 0:02:59]} 6. Be2 {[%clk 0:03:00]}  e6 {[%clk 0:02:59]} 7. O-O {[%clk 0:02:59]}  Nf6 {[%clk 0:02:58]} 8. Be3 {[%clk 0:02:59]}  cxd4 {[%clk 0:02:59]} 9. cxd4 {[%clk 0:02:59]}  Be7 {[%clk 0:02:58]} 10. Nc3 {[%clk 0:03:00]}  Qd6 {[%clk 0:02:59]} 11. h3 {[%clk 0:02:58]}  Bh5 {[%clk 0:02:58]} 12. a3 {[%clk 0:02:51]}  O-O {[%clk 0:02:58]} 13. Qb3 {[%clk 0:02:50]}  b6 {[%clk 0:02:45]} 14. Rad1 {[%clk 0:02:49]}  Rfd8 {[%clk 0:02:38]} 15. Rfe1 {[%clk 0:02:41]}  Rac8 {[%clk 0:02:36]} 16. Qb5 {[%clk 0:02:26]}  Bg6 {[%clk 0:02:15]} 17. Ne5 {[%clk 0:02:13]}  Nd5 {[%clk 0:01:58]} 18. Nxg6 {[%clk 0:01:45]}  hxg6 {[%clk 0:01:57]} 19. Bf3 {[%clk 0:01:39]}  Nxc3 {[%clk 0:01:36]} 20. bxc3 {[%clk 0:01:35]}  Na5 {[%clk 0:01:36]} 21. d5 {[%clk 0:01:24]}  e5 {[%clk 0:01:35]} 22. Qa6 {[%clk 0:00:42]}  Rxc3 {[%clk 0:01:04]} 23. Qxa7 {[%clk 0:00:39]}  Nc4 {[%clk 0:01:04]} 24. Rc1 {[%clk 0:00:29]}  Rxa3 {[%clk 0:00:57]} 25. Qb7 {[%clk 0:00:29]}  Nxe3 {[%clk 0:00:54]} 26. Rc6 {[%clk 0:00:21]}  Qb4 {[%clk 0:00:49]} 27. Rxe3 {[%clk 0:00:20]}  Rxe3 {[%clk 0:00:27]} 28. fxe3 {[%clk 0:00:21]}  Qe1+ {[%clk 0:00:17]} 29. Kh2 {[%clk 0:00:21]}  Bh4 {[%clk 0:00:17]} 30. g4 {[%clk 0:00:10]}  Bg3+ {[%clk 0:00:17]} 31. Kg2 {[%clk 0:00:09]}  Qf2+ {[%clk 0:00:17]} 32. Kh1 {[%clk 0:00:10]}  Qh2# {[%clk 0:00:18]} 0-1


[Site "https://www.chess.com"]

[Event "Titled Tuesday Blitz February 21 Late 2023"]
[White "Defend, Balint"]
[Black "Prieto Aranguren, Alain"]
[WhiteFideId "17004853"]
[BlackFideId "2268906"]
[WhiteElo "1673"]
[BlackElo "2258"]
[Result "1-0"]
[Round "03"]
[TimeControl "180+2"]
[Date "2023.02.21"]
[WhiteClock "0:01:08"]
[BlackClock "0:01:03"]

1. e4 {[%clk 0:02:59]}  c6 {[%clk 0:02:59]} 2. Nf3 {[%clk 0:02:50]}  d5 {[%clk 0:02:59]} 3. Nc3 {[%clk 0:02:50]}  Bg4 {[%clk 0:02:58]} 4. h3 {[%clk 0:02:35]}  Bh5 {[%clk 0:02:56]} 5. g4 {[%clk 0:02:32]}  Bg6 {[%clk 0:02:56]} 6. e5 {[%clk 0:02:29]}  e6 {[%clk 0:02:52]} 7. d4 {[%clk 0:02:28]}  c5 {[%clk 0:02:51]} 8. Bg2 {[%clk 0:02:27]}  Nc6 {[%clk 0:02:51]} 9. Bf4 {[%clk 0:02:25]}  Qb6 {[%clk 0:02:46]} 10. dxc5 {[%clk 0:02:23]}  Qxb2 {[%clk 0:02:40]} 11. Na4 {[%clk 0:02:22]}  Qa3 {[%clk 0:02:33]} 12. c3 {[%clk 0:02:19]}  b5 {[%clk 0:02:19]} 13. cxb6 {[%clk 0:02:18]}  axb6 {[%clk 0:02:19]} 14. Nxb6 {[%clk 0:02:14]}  Ra6 {[%clk 0:02:05]} 15. Be3 {[%clk 0:02:03]}  Qxc3+ {[%clk 0:02:00]} 16. Nd2 {[%clk 0:02:03]}  Bd3 {[%clk 0:01:51]} 17. Rc1 {[%clk 0:02:02]}  Qa5 {[%clk 0:01:44]} 18. Rxc6 {[%clk 0:02:01]}  Bb4 {[%clk 0:01:38]} 19. Rc8+ {[%clk 0:01:23]}  Ke7 {[%clk 0:01:37]} 20. Qc1 {[%clk 0:01:08]}  Bc3 {[%clk 0:01:03]} 1-0


[Site "https://www.chess.com"]

[Event "Titled Tuesday Blitz February 21 Late 2023"]
[White "Lorenzo De La Riva, Lazaro"]
[Black "Kokoszczynski, Jan"]
[WhiteFideId "2268809"]
[BlackFideId "1174460"]
[WhiteElo "2404"]
[BlackElo "2247"]
[Result "1-0"]
[Round "03"]
[TimeControl "180+2"]
[Date "2023.02.21"]
[WhiteClock "0:00:46"]
[BlackClock "0:00:01"]

1. d4 {[%clk 0:03:00]}  d5 {[%clk 0:02:58]} 2. Nc3 {[%clk 0:03:00]}  Nf6 {[%clk 0:02:58]} 3. Bf4 {[%clk 0:03:00]}  e6 {[%clk 0:02:58]} 4. Nb5 {[%clk 0:03:00]}  Na6 {[%clk 0:02:57]} 5. e3 {[%clk 0:02:59]}  Be7 {[%clk 0:02:58]} 6. h4 {[%clk 0:02:58]}  O-O {[%clk 0:02:55]} 7. h5 {[%clk 0:02:58]}  c6 {[%clk 0:02:52]} 8. Nc3 {[%clk 0:02:57]}  c5 {[%clk 0:02:50]} 9. Nb5 {[%clk 0:02:49]}  Bd7 {[%clk 0:02:46]} 10. a4 {[%clk 0:02:48]}  Nb4 {[%clk 0:02:29]} 11. c3 {[%clk 0:02:36]}  Nc6 {[%clk 0:02:28]} 12. Nf3 {[%clk 0:02:24]}  Rc8 {[%clk 0:02:10]} 13. Ne5 {[%clk 0:02:18]}  a6 {[%clk 0:02:05]} 14. Na3 {[%clk 0:02:15]}  cxd4 {[%clk 0:01:44]} 15. exd4 {[%clk 0:02:16]}  Nxe5 {[%clk 0:01:44]} 16. Bxe5 {[%clk 0:02:15]}  Qa5 {[%clk 0:01:34]} 17. Bd3 {[%clk 0:02:07]}  Bxa4 {[%clk 0:01:13]} 18. Qf3 {[%clk 0:02:06]}  Bb5 {[%clk 0:00:30]} 19. h6 {[%clk 0:01:57]}  Bxd3 {[%clk 0:00:11]} 20. hxg7 {[%clk 0:01:55]}  Kxg7 {[%clk 0:00:12]} 21. Qxd3 {[%clk 0:01:50]}  Rg8 {[%clk 0:00:12]} 22. Qf3 {[%clk 0:01:47]}  Qd8 {[%clk 0:00:11]} 23. Qf4 {[%clk 0:01:26]}  Kf8 {[%clk 0:00:10]} 24. Rh3 {[%clk 0:01:25]}  Rg6 {[%clk 0:00:09]} 25. Nc2 {[%clk 0:01:17]}  b5 {[%clk 0:00:08]} 26. Rxa6 {[%clk 0:01:12]}  b4 {[%clk 0:00:07]} 27. Bxf6 {[%clk 0:00:55]}  Bxf6 {[%clk 0:00:03]} 28. Nxb4 {[%clk 0:00:51]}  Kg8 {[%clk 0:00:01]} 29. Rf3 {[%clk 0:00:46]} 1-0


[Site "https://www.chess.com"]

[Event "Titled Tuesday Blitz February 21 Late 2023"]
[White "Kaplan, Avi Harrison"]
[Black "Jenkins, Drake"]
[WhiteFideId "30934559"]
[BlackFideId "2022397"]
[WhiteElo "2146"]
[BlackElo "2130"]
[Result "1-0"]
[Round "03"]
[TimeControl "180+2"]
[Date "2023.02.21"]
[WhiteClock "0:01:10"]
[BlackClock "0:01:27"]

1. e4 {[%clk 0:02:47]}  c6 {[%clk 0:02:59]} 2. d4 {[%clk 0:02:44]}  d5 {[%clk 0:03:00]} 3. exd5 {[%clk 0:02:45]}  cxd5 {[%clk 0:03:00]} 4. Nf3 {[%clk 0:02:43]}  Nc6 {[%clk 0:03:00]} 5. Bd3 {[%clk 0:02:43]}  Qc7 {[%clk 0:03:00]} 6. c3 {[%clk 0:02:41]}  Bg4 {[%clk 0:02:59]} 7. O-O {[%clk 0:02:41]}  e6 {[%clk 0:02:57]} 8. h3 {[%clk 0:02:39]}  Bh5 {[%clk 0:02:56]} 9. Nbd2 {[%clk 0:02:39]}  Bd6 {[%clk 0:02:56]} 10. Re1 {[%clk 0:02:39]}  Nge7 {[%clk 0:02:55]} 11. b4 {[%clk 0:02:35]}  a6 {[%clk 0:02:49]} 12. a4 {[%clk 0:02:34]}  O-O {[%clk 0:02:46]} 13. Bxh7+ {[%clk 0:02:32]}  Kxh7 {[%clk 0:02:30]} 14. Ng5+ {[%clk 0:02:31]}  Kg6 {[%clk 0:02:30]} 15. Qc2+ {[%clk 0:02:17]}  Nf5 {[%clk 0:02:14]} 16. g4 {[%clk 0:01:57]}  Rh8 {[%clk 0:01:56]} 17. Ndf3 {[%clk 0:01:35]}  Nxb4 {[%clk 0:01:40]} 18. Qe2 {[%clk 0:01:14]}  Qxc3 {[%clk 0:01:33]} 19. Qxe6+ {[%clk 0:01:12]}  fxe6 {[%clk 0:01:27]} 20. Rxe6# {[%clk 0:01:10]} 1-0


[Site "https://www.chess.com"]

[Event "Titled Tuesday Blitz February 21 Late 2023"]
[White "Zampronha, Wladimir Camilo"]
[Black "Urbina Perez, Juan Antonio"]
[WhiteFideId "2103087"]
[BlackFideId "2217368"]
[WhiteElo "2176"]
[BlackElo "2266"]
[Result "0-1"]
[Round "03"]
[TimeControl "180+2"]
[Date "2023.02.21"]
[WhiteClock "0:00:02"]
[BlackClock "0:00:32"]

1. e4 {[%clk 0:03:00]}  c5 {[%clk 0:02:58]} 2. Nf3 {[%clk 0:03:01]}  d6 {[%clk 0:02:58]} 3. d4 {[%clk 0:03:01]}  cxd4 {[%clk 0:02:59]} 4. Nxd4 {[%clk 0:03:02]}  Nf6 {[%clk 0:02:59]} 5. Nc3 {[%clk 0:03:02]}  a6 {[%clk 0:03:00]} 6. Bg5 {[%clk 0:03:03]}  e6 {[%clk 0:03:00]} 7. f4 {[%clk 0:03:03]}  Be7 {[%clk 0:03:00]} 8. Qf3 {[%clk 0:03:03]}  Qc7 {[%clk 0:03:01]} 9. O-O-O {[%clk 0:03:03]}  h6 {[%clk 0:02:58]} 10. Bxf6 {[%clk 0:02:53]}  Bxf6 {[%clk 0:02:59]} 11. g4 {[%clk 0:02:53]}  Nc6 {[%clk 0:02:58]} 12. Nde2 {[%clk 0:02:45]}  b5 {[%clk 0:02:52]} 13. h4 {[%clk 0:02:04]}  b4 {[%clk 0:02:45]} 14. Na4 {[%clk 0:02:04]}  Bb7 {[%clk 0:02:41]} 15. g5 {[%clk 0:02:02]}  Be7 {[%clk 0:02:35]} 16. g6 {[%clk 0:01:54]}  fxg6 {[%clk 0:02:24]} 17. Bh3 {[%clk 0:01:54]}  O-O-O {[%clk 0:02:04]} 18. Bxe6+ {[%clk 0:01:52]}  Kb8 {[%clk 0:02:04]} 19. Bd5 {[%clk 0:01:53]}  Qa5 {[%clk 0:02:02]} 20. b3 {[%clk 0:01:52]}  Bf6 {[%clk 0:02:00]} 21. Kb1 {[%clk 0:01:43]}  Rhe8 {[%clk 0:01:59]} 22. Qd3 {[%clk 0:01:40]}  Re7 {[%clk 0:01:51]} 23. Rhg1 {[%clk 0:01:40]}  Rc8 {[%clk 0:01:49]} 24. Rxg6 {[%clk 0:01:37]}  Nd8 {[%clk 0:01:46]} 25. Bxb7 {[%clk 0:01:34]}  Nxb7 {[%clk 0:01:47]} 26. Nd4 {[%clk 0:01:19]}  Rec7 {[%clk 0:01:45]} 27. Rc1 {[%clk 0:01:14]}  Rc3 {[%clk 0:01:36]} 28. Nxc3 {[%clk 0:01:03]}  bxc3 {[%clk 0:01:37]} 29. Ka1 {[%clk 0:00:57]}  Qa3 {[%clk 0:01:27]} 30. Rb1 {[%clk 0:00:56]}  Nc5 {[%clk 0:01:27]} 31. Qe3 {[%clk 0:00:45]}  Qb4 {[%clk 0:01:19]} 32. Rxf6 {[%clk 0:00:41]}  gxf6 {[%clk 0:01:17]} 33. Nf5 {[%clk 0:00:40]}  Nxe4 {[%clk 0:01:12]} 34. Nxh6 {[%clk 0:00:22]}  Nd2 {[%clk 0:01:11]} 35. Nf5 {[%clk 0:00:05]}  Nxb1 {[%clk 0:01:11]} 36. Kxb1 {[%clk 0:00:06]}  Qb5 {[%clk 0:00:48]} 37. Nxd6 {[%clk 0:00:04]}  Qf1+ {[%clk 0:00:45]} 38. Qc1 {[%clk 0:00:05]}  Qxc1+ {[%clk 0:00:44]} 39. Kxc1 {[%clk 0:00:06]}  Rh8 {[%clk 0:00:43]} 40. Ne4 {[%clk 0:00:06]}  Rxh4 {[%clk 0:00:41]} 41. Nxc3 {[%clk 0:00:06]}  Rxf4 {[%clk 0:00:41]} 42. Kd2 {[%clk 0:00:05]}  Rh4 {[%clk 0:00:39]} 43. Nd5 {[%clk 0:00:03]}  f5 {[%clk 0:00:38]} 44. Ke3 {[%clk 0:00:02]}  Kb7 {[%clk 0:00:38]} 45. c4 {[%clk 0:00:02]}  Re4+ {[%clk 0:00:33]} 46. Kd3 {[%clk 0:00:01]}  Kc6 {[%clk 0:00:33]} 47. Ne3 {[%clk 0:00:02]}  Rf4 {[%clk 0:00:32]} 0-1


[Site "https://www.chess.com"]

[Event "Titled Tuesday Blitz February 21 Late 2023"]
[White "Toncheva, Nadya"]
[Black "Zhang, Alan"]
[WhiteFideId "2924056"]
[BlackFideId "30936870"]
[WhiteElo "2295"]
[BlackElo "2001"]
[Result "1-0"]
[Round "03"]
[TimeControl "180+2"]
[Date "2023.02.21"]
[WhiteClock "0:00:06"]
[BlackClock "0:00:06"]

1. d4 {[%clk 0:03:00]}  Nf6 {[%clk 0:02:51]} 2. c4 {[%clk 0:03:01]}  e6 {[%clk 0:02:51]} 3. Nc3 {[%clk 0:03:01]}  d5 {[%clk 0:02:50]} 4. cxd5 {[%clk 0:03:01]}  exd5 {[%clk 0:02:51]} 5. Bg5 {[%clk 0:03:01]}  c6 {[%clk 0:02:47]} 6. e3 {[%clk 0:03:01]}  Be7 {[%clk 0:02:46]} 7. Bd3 {[%clk 0:03:01]}  O-O {[%clk 0:02:46]} 8. Qc2 {[%clk 0:03:01]}  Nbd7 {[%clk 0:02:46]} 9. Nge2 {[%clk 0:03:02]}  Re8 {[%clk 0:02:46]} 10. O-O {[%clk 0:03:02]}  h6 {[%clk 0:02:47]} 11. Bh4 {[%clk 0:03:02]}  Ne4 {[%clk 0:02:47]} 12. Bxe7 {[%clk 0:02:58]}  Qxe7 {[%clk 0:02:48]} 13. Bxe4 {[%clk 0:02:58]}  dxe4 {[%clk 0:02:47]} 14. d5 {[%clk 0:02:58]}  Qc5 {[%clk 0:02:20]} 15. dxc6 {[%clk 0:02:47]}  Qxc6 {[%clk 0:02:17]} 16. Nd4 {[%clk 0:02:38]}  Qg6 {[%clk 0:02:17]} 17. Nd5 {[%clk 0:02:29]}  Ne5 {[%clk 0:02:10]} 18. Rac1 {[%clk 0:02:04]}  Nd3 {[%clk 0:01:32]} 19. Qxc8 {[%clk 0:01:03]}  Raxc8 {[%clk 0:00:30]} 20. Rxc8 {[%clk 0:01:03]}  Kf8 {[%clk 0:00:26]} 21. Rc7 {[%clk 0:00:44]}  Qd6 {[%clk 0:00:22]} 22. Rxb7 {[%clk 0:00:23]}  Qxd5 {[%clk 0:00:20]} 23. Rxa7 {[%clk 0:00:24]}  Rc8 {[%clk 0:00:18]} 24. h3 {[%clk 0:00:19]}  Nxb2 {[%clk 0:00:17]} 25. a4 {[%clk 0:00:18]}  Nd3 {[%clk 0:00:16]} 26. a5 {[%clk 0:00:18]}  Qa2 {[%clk 0:00:14]} 27. a6 {[%clk 0:00:16]}  Nb4 {[%clk 0:00:13]} 28. Nf5 {[%clk 0:00:10]}  Nxa6 {[%clk 0:00:11]} 29. Nd6 {[%clk 0:00:10]}  Rc6 {[%clk 0:00:07]} 30. Ra8+ {[%clk 0:00:11]}  Ke7 {[%clk 0:00:07]} 31. Nf5+ {[%clk 0:00:11]}  Kf6 {[%clk 0:00:06]} 32. Nd4 {[%clk 0:00:11]}  Rb6 {[%clk 0:00:06]} 33. g4 {[%clk 0:00:10]}  Rb1 {[%clk 0:00:06]} 34. Rxb1 {[%clk 0:00:09]}  Qxb1+ {[%clk 0:00:06]} 35. Kg2 {[%clk 0:00:10]}  Nc5 {[%clk 0:00:07]} 36. Rc8 {[%clk 0:00:08]}  Nd3 {[%clk 0:00:07]} 37. Rc6+ {[%clk 0:00:09]}  Kg5 {[%clk 0:00:07]} 38. f4+ {[%clk 0:00:05]}  exf3+ {[%clk 0:00:06]} 39. Nxf3# {[%clk 0:00:06]} 1-0


[Site "https://www.chess.com"]

[Event "Titled Tuesday Blitz February 21 Late 2023"]
[White "Karwowski, Kacper"]
[Black "Sailer, Mike"]
[WhiteFideId "1126032"]
[BlackFideId "2012901"]
[WhiteElo "2164"]
[BlackElo "2109"]
[Result "0-1"]
[Round "03"]
[TimeControl "180+2"]
[Date "2023.02.21"]
[WhiteClock "0:00:01"]
[BlackClock "0:00:10"]

1. e4 {[%clk 0:02:53]}  d5 {[%clk 0:02:59]} 2. exd5 {[%clk 0:02:53]}  Qxd5 {[%clk 0:02:59]} 3. Nc3 {[%clk 0:02:53]}  Qd6 {[%clk 0:03:00]} 4. Nf3 {[%clk 0:02:53]}  Nf6 {[%clk 0:03:00]} 5. Bc4 {[%clk 0:02:49]}  c6 {[%clk 0:03:00]} 6. Qe2 {[%clk 0:02:48]}  Bg4 {[%clk 0:02:59]} 7. d3 {[%clk 0:02:39]}  e6 {[%clk 0:02:59]} 8. h3 {[%clk 0:02:39]}  Bxf3 {[%clk 0:02:55]} 9. Qxf3 {[%clk 0:02:40]}  Be7 {[%clk 0:02:55]} 10. Bf4 {[%clk 0:02:35]}  Qb4 {[%clk 0:02:49]} 11. Bb3 {[%clk 0:01:57]}  Nbd7 {[%clk 0:02:44]} 12. O-O {[%clk 0:01:50]}  O-O {[%clk 0:02:42]} 13. a3 {[%clk 0:01:40]}  Qa5 {[%clk 0:02:40]} 14. Rfe1 {[%clk 0:01:34]}  Nb6 {[%clk 0:02:31]} 15. Bd2 {[%clk 0:01:33]}  Qh5 {[%clk 0:02:23]} 16. Ne4 {[%clk 0:01:32]}  Qxf3 {[%clk 0:02:20]} 17. gxf3 {[%clk 0:01:31]}  Rfd8 {[%clk 0:02:14]} 18. Bc3 {[%clk 0:01:28]}  Nbd5 {[%clk 0:02:07]} 19. Nxf6+ {[%clk 0:01:21]}  Bxf6 {[%clk 0:02:02]} 20. Bxf6 {[%clk 0:01:19]}  Nxf6 {[%clk 0:01:59]} 21. Re5 {[%clk 0:01:12]}  Rd4 {[%clk 0:01:51]} 22. Kg2 {[%clk 0:01:07]}  Rad8 {[%clk 0:01:50]} 23. Rae1 {[%clk 0:01:07]}  g6 {[%clk 0:01:50]} 24. Bc4 {[%clk 0:00:51]}  b5 {[%clk 0:01:50]} 25. Bb3 {[%clk 0:00:51]}  Kf8 {[%clk 0:01:33]} 26. Rc5 {[%clk 0:00:50]}  R8d6 {[%clk 0:01:27]} 27. Re3 {[%clk 0:00:39]}  Ke7 {[%clk 0:01:26]} 28. c3 {[%clk 0:00:35]}  Rh4 {[%clk 0:01:20]} 29. d4 {[%clk 0:00:31]}  Kd7 {[%clk 0:01:17]} 30. a4 {[%clk 0:00:30]}  a6 {[%clk 0:01:17]} 31. axb5 {[%clk 0:00:30]}  axb5 {[%clk 0:01:13]} 32. Kg3 {[%clk 0:00:22]}  Rh5 {[%clk 0:01:12]} 33. Rxh5 {[%clk 0:00:20]}  Nxh5+ {[%clk 0:01:13]} 34. Kg2 {[%clk 0:00:16]}  Kc7 {[%clk 0:01:07]} 35. Re1 {[%clk 0:00:17]}  Nf4+ {[%clk 0:01:04]} 36. Kg3 {[%clk 0:00:16]}  Nh5+ {[%clk 0:00:55]} 37. Kg2 {[%clk 0:00:15]}  Rd8 {[%clk 0:00:53]} 38. Ra1 {[%clk 0:00:14]}  Kb7 {[%clk 0:00:54]} 39. Re1 {[%clk 0:00:08]}  Nf4+ {[%clk 0:00:53]} 40. Kg3 {[%clk 0:00:07]}  Nh5+ {[%clk 0:00:51]} 41. Kg2 {[%clk 0:00:07]}  Ra8 {[%clk 0:00:51]} 42. Rd1 {[%clk 0:00:06]}  Kb6 {[%clk 0:00:38]} 43. h4 {[%clk 0:00:05]}  Ng7 {[%clk 0:00:29]} 44. Kg3 {[%clk 0:00:05]}  h5 {[%clk 0:00:29]} 45. f4 {[%clk 0:00:04]}  Nf5+ {[%clk 0:00:29]} 46. Kh3 {[%clk 0:00:05]}  Rd8 {[%clk 0:00:22]} 47. Bc2 {[%clk 0:00:04]}  Nd6 {[%clk 0:00:22]} 48. Bd3 {[%clk 0:00:03]}  Nb7 {[%clk 0:00:19]} 49. Ra1 {[%clk 0:00:03]}  Na5 {[%clk 0:00:18]} 50. Bc2 {[%clk 0:00:02]}  Nc4 {[%clk 0:00:18]} 51. b3 {[%clk 0:00:02]}  Nd6 {[%clk 0:00:10]} 52. b4 {[%clk 0:00:02]}  Nc4 {[%clk 0:00:10]} 53. Bd3 {[%clk 0:00:02]}  Nd6 {[%clk 0:00:10]} 54. Ra2 {[%clk 0:00:01]}  Nc8 {[%clk 0:00:10]} 55. Be4 {[%clk 0:00:01]}  Ne7 {[%clk 0:00:10]} 0-1


[Site "https://www.chess.com"]

[Event "Titled Tuesday Blitz February 21 Late 2023"]
[White "Taboas Rodriguez, Daniel"]
[Black "Manu_ChessExcelsior"]
[WhiteFideId "2208466"]
[WhiteElo "2371"]
[BlackElo "2095"]
[Result "1-0"]
[Round "03"]
[TimeControl "180+2"]
[Date "2023.02.21"]
[WhiteClock "0:00:24"]
[BlackClock "0:00:05"]

1. d4 {[%clk 0:03:00]}  d5 {[%clk 0:02:57]} 2. c4 {[%clk 0:02:59]}  e6 {[%clk 0:02:56]} 3. Nc3 {[%clk 0:02:30]}  a6 {[%clk 0:02:55]} 4. e4 {[%clk 0:02:24]}  dxe4 {[%clk 0:02:51]} 5. Nxe4 {[%clk 0:02:25]}  Nf6 {[%clk 0:02:39]} 6. Nxf6+ {[%clk 0:02:25]}  Qxf6 {[%clk 0:02:39]} 7. Nf3 {[%clk 0:02:25]}  Bb4+ {[%clk 0:02:35]} 8. Bd2 {[%clk 0:02:25]}  Bxd2+ {[%clk 0:02:34]} 9. Qxd2 {[%clk 0:02:26]}  O-O {[%clk 0:02:32]} 10. Bd3 {[%clk 0:02:26]}  Nd7 {[%clk 0:02:17]} 11. O-O {[%clk 0:02:22]}  Rd8 {[%clk 0:02:12]} 12. Rfe1 {[%clk 0:02:21]}  Nf8 {[%clk 0:02:12]} 13. Qe3 {[%clk 0:02:10]}  c5 {[%clk 0:02:07]} 14. dxc5 {[%clk 0:01:52]}  Qxb2 {[%clk 0:02:06]} 15. Ne5 {[%clk 0:01:44]}  Qd4 {[%clk 0:01:48]} 16. Qxd4 {[%clk 0:01:38]}  Rxd4 {[%clk 0:01:46]} 17. Rad1 {[%clk 0:01:39]}  f6 {[%clk 0:01:22]} 18. Bxh7+ {[%clk 0:01:32]}  Kxh7 {[%clk 0:01:20]} 19. Rxd4 {[%clk 0:01:33]}  fxe5 {[%clk 0:01:20]} 20. Rd8 {[%clk 0:01:33]}  Nd7 {[%clk 0:01:13]} 21. h4 {[%clk 0:01:26]}  Nxc5 {[%clk 0:01:10]} 22. Rxe5 {[%clk 0:01:25]}  b6 {[%clk 0:01:01]} 23. Rh5+ {[%clk 0:01:12]}  Kg6 {[%clk 0:01:00]} 24. Rg5+ {[%clk 0:01:13]}  Kh7 {[%clk 0:00:58]} 25. Rf8 {[%clk 0:01:00]}  Ne4 {[%clk 0:00:34]} 26. Rg4 {[%clk 0:00:40]}  Nf6 {[%clk 0:00:34]} 27. Rd4 {[%clk 0:00:40]}  Bb7 {[%clk 0:00:33]} 28. Rxa8 {[%clk 0:00:40]}  Bxa8 {[%clk 0:00:33]} 29. Rd6 {[%clk 0:00:41]}  b5 {[%clk 0:00:27]} 30. Rxa6 {[%clk 0:00:39]}  Be4 {[%clk 0:00:14]} 31. cxb5 {[%clk 0:00:38]}  Bd3 {[%clk 0:00:13]} 32. a4 {[%clk 0:00:37]}  Nd5 {[%clk 0:00:13]} 33. Rxe6 {[%clk 0:00:37]}  Bc2 {[%clk 0:00:12]} 34. a5 {[%clk 0:00:33]}  Nf4 {[%clk 0:00:12]} 35. Rc6 {[%clk 0:00:29]}  Ba4 {[%clk 0:00:08]} 36. Rc5 {[%clk 0:00:26]}  Nd3 {[%clk 0:00:07]} 37. Rd5 {[%clk 0:00:25]}  Nf4 {[%clk 0:00:05]} 38. Rf5 {[%clk 0:00:26]}  Ne2+ {[%clk 0:00:05]} 39. Kh2 {[%clk 0:00:26]}  Nd4 {[%clk 0:00:05]} 40. Rf4 {[%clk 0:00:24]} 1-0


[Site "https://www.chess.com"]